[Event "*** Titled Tuesday Blitz"]
[Site "Chess.com"]
[Date "2020.11.10"]
[Round "11"]
[White "Paralinch"]
[Black "Karateloru"]
[Result "1-0"]
[WhiteElo "2869"]
[BlackElo "2754"]
[TimeControl "180+1"]
[EndTime "12:12:47 PST"]
[Termination "Paralinch won by resignation"]

1. e4 {[%clk 0:03:00.9]} 1... c5 {[%clk 0:02:59.2]} 2. Nf3 {[%clk 0:03:01]} 2...
e6 {[%clk 0:02:59]} 3. d4 {[%clk 0:03:01.4]} 3... cxd4 {[%clk 0:02:59]} 4. Nxd4
{[%clk 0:03:02.3]} 4... Bc5 {[%clk 0:02:59.5]} 5. Nc3 {[%clk 0:03:01.4]} 5...
Ne7 {[%clk 0:02:59]} 6. Be2 {[%clk 0:02:39.7]} 6... O-O {[%clk 0:02:58.3]} 7.
O-O {[%clk 0:02:39.8]} 7... Nbc6 {[%clk 0:02:55.3]} 8. Be3 {[%clk 0:02:39.4]}
8... Bb6 {[%clk 0:02:51.1]} 9. Qd2 {[%clk 0:02:35.2]} 9... d5 {[%clk 0:02:50.7]}
10. exd5 {[%clk 0:02:34.6]} 10... Nxd5 {[%clk 0:02:51.6]} 11. Nxd5 {[%clk
0:02:35]} 11... Qxd5 {[%clk 0:02:52.2]} 12. Bf3 {[%clk 0:02:35.5]} 12... Qd7
{[%clk 0:02:29.1]} 13. Nxc6 {[%clk 0:02:28.4]} 13... bxc6 {[%clk 0:02:30]} 14.
Qxd7 {[%clk 0:02:25.8]} 14... Bxd7 {[%clk 0:02:29.9]} 15. Rfd1 {[%clk
0:02:24.6]} 15... Rad8 {[%clk 0:02:26.8]} 16. Bxb6 {[%clk 0:02:23.4]} 16... axb6
{[%clk 0:02:26.6]} 17. Rd6 {[%clk 0:02:23.9]} 17... Bc8 {[%clk 0:02:06.8]} 18.
Rad1 {[%clk 0:02:23.3]} 18... Rxd6 {[%clk 0:02:01.9]} 19. Rxd6 {[%clk
0:02:24.2]} 19... Ba6 {[%clk 0:01:31.7]} 20. Rxc6 {[%clk 0:02:23.9]} 20... Rb8
{[%clk 0:01:31.8]} 21. a4 {[%clk 0:02:20.5]} 21... Bc8 {[%clk 0:01:14.6]} 22.
Rc7 {[%clk 0:02:17.5]} 22... Kf8 {[%clk 0:01:11.5]} 23. b4 {[%clk 0:02:16.9]}
23... g6 {[%clk 0:00:51.4]} 24. Kf1 {[%clk 0:02:00.7]} 24... h5 {[%clk
0:00:48.1]} 25. h4 {[%clk 0:02:00]} 25... Ke8 {[%clk 0:00:44.3]} 26. Bc6+ {[%clk
0:01:57.5]} 26... Kf8 {[%clk 0:00:44.3]} 27. Ke1 {[%clk 0:01:56.1]} 27... f6
{[%clk 0:00:39.8]} 28. g3 {[%clk 0:01:54.1]} 28... e5 {[%clk 0:00:40]} 29. Bd5
{[%clk 0:01:52.1]} 29... Bf5 {[%clk 0:00:39.9]} 30. c4 {[%clk 0:01:49.8]} 30...
Ke8 {[%clk 0:00:28.3]} 31. Kd2 {[%clk 0:01:41.2]} 31... Rd8 {[%clk 0:00:26.5]}
32. Kc3 {[%clk 0:01:38.7]} 32... Rd6 {[%clk 0:00:26.6]} 33. a5 {[%clk 0:01:28]}
33... bxa5 {[%clk 0:00:26.3]} 34. bxa5 {[%clk 0:01:28.9]} 34... Kd8 {[%clk
0:00:25.6]} 35. Rf7 {[%clk 0:01:27]} 35... Bc8 {[%clk 0:00:21.5]} 36. Rg7 {[%clk
0:01:24.7]} 36... f5 {[%clk 0:00:19.5]} 37. Kb4 {[%clk 0:01:24.4]} 37... e4
{[%clk 0:00:19.3]} 38. Bf7 {[%clk 0:01:17.2]} 38... f4 {[%clk 0:00:18.1]} 39.
gxf4 {[%clk 0:01:16.1]} 39... Rf6 {[%clk 0:00:18.4]} 40. Bxg6 {[%clk 0:01:10]}
40... Rxf4 {[%clk 0:00:18.6]} 41. Rg8+ {[%clk 0:01:05.1]} 41... Kc7 {[%clk
0:00:18.2]} 42. Rg7+ {[%clk 0:01:00]} 42... Kd8 {[%clk 0:00:18.4]} 43. Kb5
{[%clk 0:00:48.3]} 43... Rxf2 {[%clk 0:00:14.5]} 44. Bxe4 {[%clk 0:00:47.6]}
44... Rf4 {[%clk 0:00:13.9]} 45. Bd5 {[%clk 0:00:47.1]} 45... Rxh4 {[%clk
0:00:13.1]} 46. a6 {[%clk 0:00:47.6]} 46... Rh2 {[%clk 0:00:11.9]} 47. a7 {[%clk
0:00:45.8]} 47... Rb2+ {[%clk 0:00:11.8]} 48. Kc5 {[%clk 0:00:46]} 1-0

[Event "*** Titled Tuesday Blitz"]
[Site "Chess.com"]
[Date "2020.11.10"]
[Round "11"]
[White "Mambastik-Fantastic"]
[Black "SaqoChess_Twitch"]
[Result "0-1"]
[WhiteElo "2306"]
[BlackElo "2456"]
[TimeControl "180+1"]
[EndTime "12:12:47 PST"]
[Termination "SaqoChess_Twitch won by resignation"]

1. e4 {[%clk 0:03:00.9]} 1... c5 {[%clk 0:02:56.1]} 2. Nf3 {[%clk 0:03:00.4]}
2... d6 {[%clk 0:02:56.7]} 3. d4 {[%clk 0:03:00]} 3... cxd4 {[%clk 0:02:57.6]}
4. Nxd4 {[%clk 0:03:00.1]} 4... Nf6 {[%clk 0:02:58.5]} 5. Nc3 {[%clk 0:03:00.1]}
5... g6 {[%clk 0:02:59.1]} 6. Be3 {[%clk 0:02:59.9]} 6... Bg7 {[%clk 0:02:59.8]}
7. f3 {[%clk 0:03:00.5]} 7... O-O {[%clk 0:03:00.5]} 8. Qd2 {[%clk 0:03:00.9]}
8... Nc6 {[%clk 0:03:00.9]} 9. g4 {[%clk 0:03:01.2]} 9... Nxd4 {[%clk
0:03:00.4]} 10. Bxd4 {[%clk 0:03:01]} 10... Be6 {[%clk 0:03:01.3]} 11. O-O-O
{[%clk 0:03:00.9]} 11... Qa5 {[%clk 0:03:01.9]} 12. Kb1 {[%clk 0:03:01.2]} 12...
Rfc8 {[%clk 0:03:02.5]} 13. a3 {[%clk 0:03:00]} 13... Rab8 {[%clk 0:03:03.1]}
14. h4 {[%clk 0:02:59.2]} 14... b5 {[%clk 0:03:03.6]} 15. g5 {[%clk 0:02:45.6]}
15... b4 {[%clk 0:02:58.4]} 16. Ne2 {[%clk 0:02:36.6]} 16... Nh5 {[%clk
0:02:34.6]} 17. Bxg7 {[%clk 0:02:34]} 17... Kxg7 {[%clk 0:02:35.5]} 18. Nd4
{[%clk 0:02:29.5]} 18... Bc4 {[%clk 0:02:30.4]} 19. Bh3 {[%clk 0:02:21.6]} 19...
e6 {[%clk 0:02:23.7]} 20. b3 {[%clk 0:02:19.1]} 20... Qxa3 {[%clk 0:02:16.6]}
21. bxc4 {[%clk 0:02:16.2]} 21... Rxc4 {[%clk 0:02:16.3]} 22. Bxe6 {[%clk
0:01:51.9]} 22... fxe6 {[%clk 0:02:04.2]} 23. Nxe6+ {[%clk 0:01:50.7]} 23... Kh8
{[%clk 0:01:49.3]} 24. Qxd6 {[%clk 0:01:49.9]} 24... Rbc8 {[%clk 0:01:24.7]} 25.
Qe5+ {[%clk 0:01:38.7]} 25... Kg8 {[%clk 0:01:21.6]} 26. Rd7 {[%clk 0:01:36.7]}
26... Qc3 {[%clk 0:01:05.2]} 27. Qxc3 {[%clk 0:00:38.1]} 27... bxc3 {[%clk
0:00:59.8]} 28. Rhd1 {[%clk 0:00:34.6]} 28... Rb4+ {[%clk 0:00:51.4]} 29. Kc1
{[%clk 0:00:32.6]} 29... Ra4 {[%clk 0:00:52.3]} 30. Rd8+ {[%clk 0:00:30.7]}
30... Rxd8 {[%clk 0:00:52.6]} 31. Rxd8+ {[%clk 0:00:30.3]} 31... Kf7 {[%clk
0:00:53.2]} 32. Kd1 {[%clk 0:00:18.1]} 32... Kxe6 {[%clk 0:00:52]} 33. Ke2
{[%clk 0:00:17.3]} 33... Ra2 {[%clk 0:00:48.5]} 34. Kd3 {[%clk 0:00:16.3]} 34...
Nf4+ {[%clk 0:00:49.1]} 35. Kxc3 {[%clk 0:00:16.3]} 35... Ra3+ {[%clk
0:00:49.6]} 36. Kb4 {[%clk 0:00:14.2]} 36... Rxf3 {[%clk 0:00:50.5]} 37. c4
{[%clk 0:00:13.4]} 37... a5+ {[%clk 0:00:51.4]} 38. Kxa5 {[%clk 0:00:12.7]}
38... Ke5 {[%clk 0:00:51.8]} 39. c5 {[%clk 0:00:10.1]} 39... Rc3 {[%clk
0:00:50.2]} 40. Kb6 {[%clk 0:00:09.2]} 40... Rxc5 {[%clk 0:00:44.5]} 41. Re8+
{[%clk 0:00:07.1]} 41... Ne6 {[%clk 0:00:45.2]} 42. Rxe6+ {[%clk 0:00:07.2]}
42... Kxe6 {[%clk 0:00:46.1]} 43. Kxc5 {[%clk 0:00:07.6]} 43... Ke5 {[%clk
0:00:47]} 44. Kc6 {[%clk 0:00:06.7]} 44... Kxe4 {[%clk 0:00:47.5]} 45. Kd6
{[%clk 0:00:06.8]} 45... Kf5 {[%clk 0:00:47]} 46. Ke7 {[%clk 0:00:07.1]} 46...
Kg4 {[%clk 0:00:47.6]} 47. Kf6 {[%clk 0:00:07.1]} 47... Kxh4 {[%clk 0:00:48]}
48. Kg7 {[%clk 0:00:06.5]} 48... Kxg5 {[%clk 0:00:48.9]} 0-1

[Event "*** Titled Tuesday Blitz"]
[Site "Chess.com"]
[Date "2020.11.10"]
[Round "11"]
[White "Leo_C"]
[Black "Alomaterapia"]
[Result "1-0"]
[WhiteElo "2297"]
[BlackElo "2423"]
[TimeControl "180+1"]
[EndTime "12:12:47 PST"]
[Termination "Leo_C won on time"]

1. d4 {[%clk 0:03:00.9]} 1... d5 {[%clk 0:02:59.3]} 2. c4 {[%clk 0:02:54.1]}
2... c6 {[%clk 0:02:59.5]} 3. cxd5 {[%clk 0:02:52.8]} 3... cxd5 {[%clk
0:02:59.6]} 4. Bf4 {[%clk 0:02:52.4]} 4... Nc6 {[%clk 0:02:58.1]} 5. e3 {[%clk
0:02:52.3]} 5... Nf6 {[%clk 0:02:52.6]} 6. Nc3 {[%clk 0:02:51.2]} 6... a6 {[%clk
0:02:52.6]} 7. Be2 {[%clk 0:02:50.2]} 7... Bf5 {[%clk 0:02:44.7]} 8. Nf3 {[%clk
0:02:47.2]} 8... e6 {[%clk 0:02:44.7]} 9. Qb3 {[%clk 0:02:46.2]} 9... Ra7 {[%clk
0:02:43.2]} 10. O-O {[%clk 0:02:44.4]} 10... Bd6 {[%clk 0:02:42.6]} 11. Bxd6
{[%clk 0:02:42]} 11... Qxd6 {[%clk 0:02:42.5]} 12. Rac1 {[%clk 0:02:41.9]} 12...
O-O {[%clk 0:02:42]} 13. Na4 {[%clk 0:02:41.6]} 13... b5 {[%clk 0:02:31.7]} 14.
Nc5 {[%clk 0:02:40.9]} 14... Ne4 {[%clk 0:02:23.5]} 15. a4 {[%clk 0:02:31.2]}
15... Rb8 {[%clk 0:02:07.7]} 16. axb5 {[%clk 0:02:13.8]} 16... axb5 {[%clk
0:02:07]} 17. Nxe4 {[%clk 0:02:11.5]} 17... Bxe4 {[%clk 0:02:01.3]} 18. Ra1
{[%clk 0:01:58.6]} 18... Bxf3 {[%clk 0:01:45.7]} 19. gxf3 {[%clk 0:01:53.1]}
19... h6 {[%clk 0:01:24.1]} 20. f4 {[%clk 0:01:51.2]} 20... b4 {[%clk
0:01:13.3]} 21. Rxa7 {[%clk 0:01:45.2]} 21... Nxa7 {[%clk 0:01:13.3]} 22. Ra1
{[%clk 0:01:45.5]} 22... Nc8 {[%clk 0:01:13.1]} 23. Ra6 {[%clk 0:01:40.9]} 23...
Nb6 {[%clk 0:01:12.5]} 24. Qa2 {[%clk 0:01:33.2]} 24... g6 {[%clk 0:01:11.1]}
25. Qa5 {[%clk 0:01:28]} 25... Kg7 {[%clk 0:01:04]} 26. Bd3 {[%clk 0:00:59.7]}
26... Qc7 {[%clk 0:00:58.1]} 27. Qc5 {[%clk 0:00:58.1]} 27... Qxc5 {[%clk
0:00:51.7]} 28. dxc5 {[%clk 0:00:57.7]} 28... Nd7 {[%clk 0:00:34.5]} 29. Rc6
{[%clk 0:00:52.9]} 29... Nf6 {[%clk 0:00:12.1]} 30. Rc7 {[%clk 0:00:46.7]} 30...
Ne8 {[%clk 0:00:12.2]} 31. Ra7 {[%clk 0:00:41.3]} 31... b3 {[%clk 0:00:06.3]}
32. Ba6 {[%clk 0:00:34.1]} 32... Rb4 {[%clk 0:00:05.9]} 33. Ra8 {[%clk
0:00:28.5]} 33... Nc7 {[%clk 0:00:05.3]} 34. Ra7 {[%clk 0:00:27.9]} 34... Nxa6
{[%clk 0:00:04.5]} 35. Rxa6 {[%clk 0:00:28.3]} 35... Rc4 {[%clk 0:00:04.8]} 36.
Rb6 {[%clk 0:00:25.6]} 36... Rxc5 {[%clk 0:00:02]} 37. Rxb3 {[%clk 0:00:25.3]}
37... Kf6 {[%clk 0:00:01.6]} 38. Rb7 {[%clk 0:00:24.8]} 1-0

[Event "*** Titled Tuesday Blitz"]
[Site "Chess.com"]
[Date "2020.11.10"]
[Round "11"]
[White "mapleaff"]
[Black "giantslayer83"]
[Result "0-1"]
[WhiteElo "2427"]
[BlackElo "2711"]
[TimeControl "180+1"]
[EndTime "12:12:48 PST"]
[Termination "giantslayer83 won on time"]

1. e4 {[%clk 0:03:00.9]} 1... c6 {[%clk 0:02:59.8]} 2. Nf3 {[%clk 0:03:00.3]}
2... d5 {[%clk 0:03:00.7]} 3. d3 {[%clk 0:03:01.1]} 3... g6 {[%clk 0:02:56.6]}
4. Nc3 {[%clk 0:02:59.4]} 4... Bg7 {[%clk 0:02:56.5]} 5. Be2 {[%clk 0:02:56.1]}
5... Bg4 {[%clk 0:02:44.5]} 6. h3 {[%clk 0:02:50.8]} 6... Bxf3 {[%clk
0:02:44.3]} 7. Bxf3 {[%clk 0:02:51.7]} 7... e6 {[%clk 0:02:44.1]} 8. O-O {[%clk
0:02:47.9]} 8... Ne7 {[%clk 0:02:43.8]} 9. g3 {[%clk 0:02:43]} 9... O-O {[%clk
0:02:43.6]} 10. Bg2 {[%clk 0:02:42.9]} 10... Nd7 {[%clk 0:02:44]} 11. Bd2 {[%clk
0:02:34.2]} 11... b5 {[%clk 0:02:34]} 12. Qc1 {[%clk 0:02:25.6]} 12... b4 {[%clk
0:02:33]} 13. Ne2 {[%clk 0:02:19.2]} 13... Qb6 {[%clk 0:02:32]} 14. Bh6 {[%clk
0:02:14.1]} 14... a5 {[%clk 0:02:31.8]} 15. Bxg7 {[%clk 0:02:13.4]} 15... Kxg7
{[%clk 0:02:32.7]} 16. a3 {[%clk 0:02:09.9]} 16... h6 {[%clk 0:02:16]} 17. Kh2
{[%clk 0:02:03.9]} 17... Rfb8 {[%clk 0:01:57.4]} 18. axb4 {[%clk 0:02:01.5]}
18... axb4 {[%clk 0:01:56.6]} 19. Rxa8 {[%clk 0:02:01.8]} 19... Rxa8 {[%clk
0:01:57.5]} 20. c3 {[%clk 0:01:31.6]} 20... Ra2 {[%clk 0:01:51.9]} 21. h4 {[%clk
0:01:07.8]} 21... bxc3 {[%clk 0:01:45.6]} 22. Qxc3+ {[%clk 0:01:07]} 22... Nf6
{[%clk 0:01:43.5]} 23. Nf4 {[%clk 0:00:20.1]} 23... Qxb2 {[%clk 0:01:38.7]} 24.
Qc5 {[%clk 0:00:19.7]} 24... Qa3 {[%clk 0:01:15.8]} 25. Qd4 {[%clk 0:00:17.7]}
25... c5 {[%clk 0:01:15]} 26. Qe5 {[%clk 0:00:16.5]} 26... dxe4 {[%clk
0:01:03.2]} 27. dxe4 {[%clk 0:00:09.5]} 27... Qb2 {[%clk 0:00:52.5]} 28. Qxc5
{[%clk 0:00:08.2]} 28... Ng4+ {[%clk 0:00:49.9]} 29. Kg1 {[%clk 0:00:08.3]}
29... Qf6 {[%clk 0:00:48.1]} 30. Bh3 {[%clk 0:00:05.5]} 30... Ne5 {[%clk
0:00:46.6]} 31. Bg2 {[%clk 0:00:04.7]} 31... N7c6 {[%clk 0:00:45.6]} 32. Qe3
{[%clk 0:00:04.4]} 32... Nd4 {[%clk 0:00:44.9]} 33. Kh2 {[%clk 0:00:02.3]} 33...
Ng4+ {[%clk 0:00:44.4]} 34. Kg1 {[%clk 0:00:01.9]} 34... Nxe3 {[%clk 0:00:45.3]}
35. fxe3 {[%clk 0:00:02.4]} 35... Nf5 {[%clk 0:00:32.1]} 36. exf5 {[%clk
0:00:02.2]} 36... exf5 {[%clk 0:00:33]} 37. e4 {[%clk 0:00:01.8]} 37... Qd4+
{[%clk 0:00:32]} 38. Kh2 {[%clk 0:00:01.6]} 38... fxe4 {[%clk 0:00:32.4]} 0-1

[Event "*** Titled Tuesday Blitz"]
[Site "Chess.com"]
[Date "2020.11.10"]
[Round "11"]
[White "ShahMatKanal"]
[Black "ljuks68"]
[Result "0-1"]
[WhiteElo "2489"]
[BlackElo "2397"]
[TimeControl "180+1"]
[EndTime "12:12:49 PST"]
[Termination "ljuks68 won by checkmate"]

1. d4 {[%clk 0:03:00.9]} 1... d5 {[%clk 0:02:58.9]} 2. Bf4 {[%clk 0:03:01.2]}
2... Nf6 {[%clk 0:02:58.4]} 3. e3 {[%clk 0:03:00.6]} 3... c5 {[%clk 0:02:58.6]}
4. c3 {[%clk 0:03:00.8]} 4... Nc6 {[%clk 0:02:58.9]} 5. Nd2 {[%clk 0:03:00.8]}
5... Qb6 {[%clk 0:02:58.9]} 6. Qb3 {[%clk 0:03:00.3]} 6... c4 {[%clk 0:02:59.2]}
7. Qc2 {[%clk 0:03:00.6]} 7... Bg4 {[%clk 0:02:57.4]} 8. b3 {[%clk 0:02:49.3]}
8... cxb3 {[%clk 0:02:56.6]} 9. axb3 {[%clk 0:02:49]} 9... e6 {[%clk 0:02:56.8]}
10. Bd3 {[%clk 0:02:45.4]} 10... Rc8 {[%clk 0:02:56.1]} 11. Qb2 {[%clk
0:02:42.1]} 11... Be7 {[%clk 0:02:32.9]} 12. Ne2 {[%clk 0:02:32.5]} 12... O-O
{[%clk 0:02:25.9]} 13. Ng3 {[%clk 0:02:26.5]} 13... e5 {[%clk 0:01:58]} 14. dxe5
{[%clk 0:01:53.7]} 14... Nd7 {[%clk 0:01:57.3]} 15. Nf5 {[%clk 0:01:46.6]} 15...
Bc5 {[%clk 0:01:23.6]} 16. c4 {[%clk 0:01:16.9]} 16... d4 {[%clk 0:01:03.4]} 17.
exd4 {[%clk 0:00:38]} 17... Nxd4 {[%clk 0:01:02.1]} 18. Ne3 {[%clk 0:00:34.3]}
18... Ne6 {[%clk 0:00:45.6]} 19. Nd5 {[%clk 0:00:16]} 19... Nxf4 {[%clk
0:00:33.2]} 20. Nxf4 {[%clk 0:00:05.2]} 20... Bxf2+ {[%clk 0:00:26.5]} 21. Kf1
{[%clk 0:00:05.5]} 21... Bd4 {[%clk 0:00:26.4]} 22. Qb1 {[%clk 0:00:03.1]} 22...
Bxa1 {[%clk 0:00:25.8]} 23. Qxa1 {[%clk 0:00:03.4]} 23... Qe3 {[%clk 0:00:22.3]}
24. Nd5 {[%clk 0:00:02]} 24... Qxd3+ {[%clk 0:00:20.9]} 25. Kg1 {[%clk
0:00:01.7]} 25... Qxd2 {[%clk 0:00:19.1]} 26. h3 {[%clk 0:00:01.4]} 26... Be6
{[%clk 0:00:17.5]} 27. Ne7+ {[%clk 0:00:01.7]} 27... Kh8 {[%clk 0:00:17.2]} 28.
Nxc8 {[%clk 0:00:02.6]} 28... Rxc8 {[%clk 0:00:16.8]} 29. Qxa7 {[%clk
0:00:03.5]} 29... Qe1+ {[%clk 0:00:15.4]} 30. Kh2 {[%clk 0:00:03.3]} 30... Qxe5+
{[%clk 0:00:15.5]} 31. Kg1 {[%clk 0:00:03.7]} 31... Nc5 {[%clk 0:00:14.9]} 32.
Qb6 {[%clk 0:00:03.3]} 32... Ra8 {[%clk 0:00:13.4]} 33. g3 {[%clk 0:00:02.1]}
33... Ra1+ {[%clk 0:00:12.2]} 34. Kg2 {[%clk 0:00:02.5]} 34... Qe2# {[%clk
0:00:12.3]} 0-1

[Event "*** Titled Tuesday Blitz"]
[Site "Chess.com"]
[Date "2020.11.10"]
[Round "11"]
[White "sboshaon21"]
[Black "HanSchut"]
[Result "0-1"]
[WhiteElo "2059"]
[BlackElo "2202"]
[TimeControl "180+1"]
[EndTime "12:12:50 PST"]
[Termination "HanSchut won on time"]

1. e4 {[%clk 0:03:00.9]} 1... c5 {[%clk 0:02:59.2]} 2. Nf3 {[%clk 0:03:00.9]}
2... d6 {[%clk 0:02:59.7]} 3. d3 {[%clk 0:03:01]} 3... g6 {[%clk 0:02:59.5]} 4.
g3 {[%clk 0:02:58.6]} 4... Bg7 {[%clk 0:02:59.7]} 5. Bg2 {[%clk 0:02:59]} 5...
e6 {[%clk 0:03:00]} 6. O-O {[%clk 0:02:58.8]} 6... Ne7 {[%clk 0:03:00.7]} 7. Bg5
{[%clk 0:02:54.8]} 7... h6 {[%clk 0:02:59.5]} 8. Bc1 {[%clk 0:02:48.4]} 8... O-O
{[%clk 0:02:58.9]} 9. c3 {[%clk 0:02:48.8]} 9... Kh7 {[%clk 0:02:59]} 10. Be3
{[%clk 0:02:44.1]} 10... Nbc6 {[%clk 0:02:58.4]} 11. Nbd2 {[%clk 0:02:44.5]}
11... Rb8 {[%clk 0:02:58]} 12. Ne1 {[%clk 0:02:39.2]} 12... b5 {[%clk
0:02:40.6]} 13. f4 {[%clk 0:02:34]} 13... a5 {[%clk 0:02:21.8]} 14. Nef3 {[%clk
0:02:30.4]} 14... b4 {[%clk 0:02:20.5]} 15. Qc2 {[%clk 0:02:24.1]} 15... Ba6
{[%clk 0:02:16.4]} 16. Rae1 {[%clk 0:02:06.3]} 16... a4 {[%clk 0:02:13.9]} 17.
h3 {[%clk 0:01:53.2]} 17... a3 {[%clk 0:02:07.8]} 18. bxa3 {[%clk 0:01:39.4]}
18... bxc3 {[%clk 0:02:03.7]} 19. Nb3 {[%clk 0:01:25.3]} 19... c4 {[%clk
0:01:51.7]} 20. dxc4 {[%clk 0:01:18]} 20... Bxc4 {[%clk 0:01:52.6]} 21. Rf2
{[%clk 0:01:16.6]} 21... Na5 {[%clk 0:01:42.3]} 22. Bd4 {[%clk 0:01:03.6]} 22...
Nxb3 {[%clk 0:01:37.1]} 23. axb3 {[%clk 0:01:02.4]} 23... Bxb3 {[%clk
0:01:36.7]} 24. Qxc3 {[%clk 0:01:00.6]} 24... Bxd4 {[%clk 0:01:29.2]} 25. Qxd4
{[%clk 0:00:56.5]} 25... Qb6 {[%clk 0:01:28.9]} 26. Kh2 {[%clk 0:00:41.4]} 26...
Nc6 {[%clk 0:01:18.8]} 27. Qxb6 {[%clk 0:00:30.4]} 27... Rxb6 {[%clk 0:01:19.7]}
28. Rb2 {[%clk 0:00:18.9]} 28... Rfb8 {[%clk 0:01:18.3]} 29. Reb1 {[%clk
0:00:16.7]} 29... Na5 {[%clk 0:01:18.2]} 30. Nd4 {[%clk 0:00:15.9]} 30... e5
{[%clk 0:01:13.4]} 31. Nxb3 {[%clk 0:00:15.4]} 31... Rxb3 {[%clk 0:01:01.7]} 32.
Rxb3 {[%clk 0:00:15]} 32... Rxb3 {[%clk 0:01:02.4]} 33. Rxb3 {[%clk 0:00:12.6]}
33... Nxb3 {[%clk 0:01:03.3]} 34. Bf1 {[%clk 0:00:11.4]} 34... Nc5 {[%clk
0:00:53.9]} 35. Bg2 {[%clk 0:00:08.4]} 35... Kg7 {[%clk 0:00:52.4]} 36. Kg1
{[%clk 0:00:07.7]} 36... Kf8 {[%clk 0:00:52.9]} 37. Kf2 {[%clk 0:00:08]} 37...
Ke7 {[%clk 0:00:53.5]} 38. Ke3 {[%clk 0:00:08.4]} 38... Kd7 {[%clk 0:00:54.1]}
39. Kd2 {[%clk 0:00:07.1]} 39... Kc6 {[%clk 0:00:53.8]} 40. Kc3 {[%clk
0:00:07.5]} 40... Kb5 {[%clk 0:00:53.4]} 41. Bf1+ {[%clk 0:00:06.5]} 41... Ka4
{[%clk 0:00:53.8]} 42. Bg2 {[%clk 0:00:03.8]} 42... Kxa3 {[%clk 0:00:48.1]} 43.
Kc4 {[%clk 0:00:04.2]} 43... Kb2 {[%clk 0:00:41.1]} 44. Kd5 {[%clk 0:00:03.9]}
44... exf4 {[%clk 0:00:38.3]} 45. gxf4 {[%clk 0:00:03.1]} 45... Nd3 {[%clk
0:00:38.8]} 0-1

[Event "*** Titled Tuesday Blitz"]
[Site "Chess.com"]
[Date "2020.11.10"]
[Round "11"]
[White "gui_borba"]
[Black "queen_iryna"]
[Result "1-0"]
[WhiteElo "2434"]
[BlackElo "2278"]
[TimeControl "180+1"]
[EndTime "12:12:52 PST"]
[Termination "gui_borba won by resignation"]

1. d4 {[%clk 0:03:00.9]} 1... d6 {[%clk 0:02:59.7]} 2. e4 {[%clk 0:03:00.9]}
2... Nf6 {[%clk 0:03:00]} 3. Nc3 {[%clk 0:03:00.8]} 3... e5 {[%clk 0:03:00.5]}
4. Nf3 {[%clk 0:03:01.5]} 4... Nbd7 {[%clk 0:03:00.2]} 5. Bc4 {[%clk 0:03:00.9]}
5... Be7 {[%clk 0:03:00.5]} 6. O-O {[%clk 0:03:00.4]} 6... O-O {[%clk
0:03:00.5]} 7. a4 {[%clk 0:02:58.5]} 7... c6 {[%clk 0:03:00.8]} 8. Re1 {[%clk
0:02:56.9]} 8... h6 {[%clk 0:03:01]} 9. h3 {[%clk 0:02:56.1]} 9... Re8 {[%clk
0:03:01.3]} 10. a5 {[%clk 0:02:55.8]} 10... Bf8 {[%clk 0:03:00]} 11. dxe5 {[%clk
0:02:48.8]} 11... dxe5 {[%clk 0:02:58.4]} 12. Nh4 {[%clk 0:02:47.1]} 12... Qc7
{[%clk 0:02:56.5]} 13. Nf5 {[%clk 0:02:45]} 13... Nc5 {[%clk 0:02:55.2]} 14. Qf3
{[%clk 0:02:44.2]} 14... Ne6 {[%clk 0:02:39.1]} 15. Nxh6+ {[%clk 0:02:39.6]}
15... gxh6 {[%clk 0:02:36]} 16. Qxf6 {[%clk 0:02:39.4]} 16... Bg7 {[%clk
0:02:35.2]} 17. Qf3 {[%clk 0:02:38.8]} 17... Nd4 {[%clk 0:02:35.2]} 18. Qg3
{[%clk 0:02:12.7]} 18... Kh7 {[%clk 0:02:24.7]} 19. Bd3 {[%clk 0:02:08.2]} 19...
Rg8 {[%clk 0:02:21.2]} 20. Kh2 {[%clk 0:02:03]} 20... Be6 {[%clk 0:02:15.6]} 21.
Qh4 {[%clk 0:01:57.2]} 21... Rae8 {[%clk 0:01:48.8]} 22. Re3 {[%clk 0:01:55.7]}
22... Qe7 {[%clk 0:01:45.7]} 23. Qh5 {[%clk 0:01:47.8]} 23... Qf6 {[%clk
0:01:43.1]} 24. Rg3 {[%clk 0:01:42.4]} 24... Bh8 {[%clk 0:01:22.3]} 25. Be3
{[%clk 0:01:21.2]} 25... Rxg3 {[%clk 0:01:14.1]} 26. fxg3 {[%clk 0:01:22.1]}
26... Qg6 {[%clk 0:01:01.5]} 27. Qd1 {[%clk 0:01:04.1]} 27... Rg8 {[%clk
0:01:00.5]} 28. Qe1 {[%clk 0:00:58.1]} 28... f5 {[%clk 0:00:48.1]} 29. Qf2
{[%clk 0:00:45.3]} 29... f4 {[%clk 0:00:35.2]} 30. gxf4 {[%clk 0:00:36.5]} 30...
exf4 {[%clk 0:00:25.3]} 31. Bxf4 {[%clk 0:00:36.1]} 31... Bc8 {[%clk 0:00:14.1]}
32. Rg1 {[%clk 0:00:31.1]} 32... Bf6 {[%clk 0:00:12]} 33. e5 {[%clk 0:00:29.5]}
33... Bf5 {[%clk 0:00:11.4]} 34. exf6 {[%clk 0:00:26.3]} 34... Bxd3 {[%clk
0:00:11.2]} 35. cxd3 {[%clk 0:00:27.1]} 35... Qxf6 {[%clk 0:00:10]} 36. Ne4
{[%clk 0:00:23.6]} 36... Qf7 {[%clk 0:00:08]} 37. Bg3 {[%clk 0:00:16.5]} 37...
Qd7 {[%clk 0:00:07.3]} 38. Nf6+ {[%clk 0:00:15.2]} 1-0